fUST/lending_fUST_20250705
["ID","MTS","AMOUNT","RATE_DAILY","PERIOD"]
[369702230,1751705453159,-460.0,0.0002,2]
[369702231,1751705453168,-1311.47,0.0002,2]
[369702232,1751705453177,-460.0,0.0002,2]
[369702233,1751705453186,-1777.6,0.0002,2]
[369702234,1751705453195,-460.0,0.0002,2]
[369702235,1751705453204,-587.58,0.0002,2]
[369702236,1751705453213,-460.0,0.0002,2]
[369702237,1751705453222,-460.0,0.0002,2]
[369702238,1751705453231,-460.0,0.0002,2]
[369702239,1751705453241,-460.0,0.0002,2]
[369702240,1751705453250,-3313.29,0.0002,2]
[369702241,1751705453259,-460.0,0.0002,2]
[369702242,1751705453269,-1849.71,0.0002,2]
[369702243,1751705453278,-460.0,0.0002,2]
[369702244,1751705453287,-460.0,0.0002,2]
[369702245,1751705453297,-460.0,0.0002,2]
[369702246,1751705453306,-460.0,0.0002,2]
[369702247,1751705453316,-1113.13,0.0002,2]
[369702248,1751705453325,-460.0,0.0002,2]
[369702249,1751705453334,-1231.64,0.0002,2]
[369702250,1751705453343,-460.0,0.0002,2]
[369702251,1751705453352,-460.0,0.0002,2]
[369702252,1751705453362,-219.34,0.0002,2]
[369702253,1751705453371,-1097.56,0.0002,2]
[369702254,1751705453381,-323.23,0.0002,2]
[369702255,1751705453390,-460.0,0.0002,2]
[369702256,1751705453400,-460.0,0.0002,2]
[369702257,1751705453409,-460.0,0.0002,2]
[369702258,1751705453418,-460.0,0.0002,2]
[369702259,1751705453428,-471.98,0.0002,2]
[369702260,1751705453437,-460.0,0.0002,2]
[369702261,1751705453446,-864.44,0.0002,2]
[369702262,1751705453455,-460.0,0.0002,2]
[369702263,1751705453464,-2969.44,0.0002,2]
[369702264,1751705453473,-494.81,0.0002,2]
[369702265,1751705453482,-659.21,0.0002,2]
[369702266,1751705453492,-537.5,0.0002,2]
[369702267,1751705453501,-1546.37,0.0002,2]
[369702268,1751705453510,-479.89,0.0002,2]
[369702269,1751705453519,-542.99,0.0002,2]
[369702270,1751705453528,-460.0,0.0002,2]
[369702271,1751705453538,-4000.0,0.0002,4]
[369702272,1751705453548,-460.0,0.0002,2]
[369702273,1751705453557,-975.4,0.0002,2]
[369702274,1751705453567,-925.77,0.0002,2]
[369702275,1751705453576,-460.0,0.0002,2]
[369702276,1751705453586,-489.12,0.0002,2]
[369702277,1751705453595,-460.0,0.0002,2]
[369702278,1751705453605,-460.0,0.0002,2]
[369702279,1751705453614,-460.0,0.0002,2]
[369702280,1751705453624,-460.0,0.0002,2]
[369702281,1751705453633,-272.978804,0.00020021,2]
[369702282,1751705453642,-272.978804,0.00020021,2]
[369702283,1751705453652,-244.807354,0.00020021,2]
[369702284,1751705453661,-244.807354,0.00020021,2]
[369702285,1751705453671,-1500.0,0.00020068,2]
[369702286,1751705453680,-1500.0,0.00020068,2]
[369702287,1751705453690,-1000.0,0.00020068,2]
[369702288,1751705453699,-1500.0,0.00020068,2]
[369702289,1751705453709,-1500.0,0.00020068,2]
[369702290,1751705453718,-1500.0,0.00020068,2]
[369702291,1751705453727,-500.0,0.00020079,2]
[369702292,1751705453737,-500.0,0.00020079,2]
[369702293,1751705453747,-500.0,0.00020079,2]
[369702294,1751705453756,-205.49733553,0.00020108,2]
[369702295,1751705453765,-151.356442,0.00020125,2]
[369702296,1751705453774,-500.0,0.00020125,2]
[369702297,1751705453784,-501.93501773,0.00020125,2]
[369702298,1751705453793,-500.0,0.00020125,2]
[369702299,1751705453803,-500.0,0.00020125,2]
[369702300,1751705453812,-500.0,0.00020125,2]
[369702301,1751705453821,-159.64315597,0.00020125,2]
[369702302,1751705453830,-500.0,0.00020125,2]
[369702303,1751705453839,-500.0,0.00020125,2]
[369702304,1751705453848,-500.0,0.00020125,2]
[369702305,1751705453857,-500.0,0.00020125,2]
[369702306,1751705453866,-151.0,0.000202,4]
[369702307,1751705453875,-360.951,0.00020216,2]
[369702308,1751705453884,-500.0,0.00020267,2]
[369702309,1751705453893,-427.63946218,0.00020268,2]
[369702310,1751705453902,-504.31560942,0.00020268,2]
[369702311,1751705453911,-1565.60940294,0.00020268,2]
[369702312,1751705453921,-500.0,0.00020268,2]
[369702313,1751705453930,-1500.0,0.00020268,2]
[369702314,1751705453940,-1500.0,0.00020268,2]
[369702315,1751705453950,-1500.0,0.00020268,2]
[369702316,1751705453961,-1459.77224944,0.00020268,2]
[369702317,1751705453970,-1800.0,0.00020268,2]
[369702318,1751705453980,-188.6631262,0.00020268,2]
[369702319,1751705453990,-477.35,0.00020273,2]
[369702320,1751705453999,-460.0,0.00020273,2]
[369702321,1751705454008,-460.0,0.00020273,2]
[369702322,1751705454018,-460.0,0.00020273,2]
[369702323,1751705454027,-156.13,0.00020273,2]
[369702324,1751705454036,-498.35,0.00020273,2]
[369702325,1751705454046,-151.0,0.00020273,2]
[369702326,1751705454055,-321.89,0.00020273,2]
[369702327,1751705454064,-485.46,0.00020273,2]
[369702328,1751705454073,-460.0,0.00020273,2]
[369702329,1751705454083,-151.0,0.00020273,2]
[369702330,1751705454092,-460.0,0.00020273,2]
[369702331,1751705454101,-271.38,0.00020273,2]
[369702332,1751705454111,-460.0,0.00020273,2]
[369702333,1751705454123,-489.7,0.00020273,2]
[369702334,1751705454132,-460.0,0.00020273,2]
[369702335,1751705454141,-460.0,0.00020273,2]
[369702336,1751705454150,-460.0,0.00020273,2]
[369702337,1751705454161,-460.0,0.00020273,2]
[369702338,1751705454171,-460.0,0.00020273,2]
[369702339,1751705454180,-460.0,0.00020273,2]
[369702340,1751705454190,-169.97,0.00020273,2]
[369702341,1751705454200,-151.0,0.00020273,2]
[369702342,1751705454210,-2954.13,0.00020273,2]
[369702343,1751705454219,-460.0,0.00020273,2]
[369702344,1751705454228,-850.66,0.00020273,2]
[369702345,1751705454238,-467.87,0.00020273,2]
[369702346,1751705454247,-3180.63,0.00020273,2]
[369702347,1751705454256,-813.46,0.00020273,2]
[369702348,1751705454265,-523.58,0.00020273,2]
[369702349,1751705454274,-2519.81,0.00020273,2]
[369702350,1751705454284,-151.0,0.00020273,2]
[369702351,1751705454293,-460.0,0.00020273,2]
[369702352,1751705454303,-460.0,0.00020273,2]
[369702353,1751705454311,-152.616806,0.00020273,2]
[369702354,1751705454321,-1096.46,0.00020273,2]
[369702355,1751705454330,-757.63,0.00020273,2]
[369702356,1751705454340,-1248.13953998,0.00020273,2]
[369702357,1751705454480,-349.65046002,0.00020273,2]
[369702358,1751705454490,-126.81035797,0.00020273,2]
[369702359,1751705454503,-333.18964203,0.00020273,2]
[369702360,1751705454512,-460.0,0.00020273,2]
[369702361,1751705454522,-460.0,0.00020273,2]
[369702362,1751705454532,-460.0,0.00020273,2]
[369702363,1751705454541,-1311.47,0.00020273,2]
[369702364,1751705454551,-460.0,0.00020273,2]
[369702365,1751705454560,-1777.6,0.00020273,2]
[369702366,1751705454570,-460.0,0.00020273,2]
[369702367,1751705454579,-241.30358846,0.00020273,2]
[369702368,1751705455072,-4252.81938121,0.00019165,2]
[369702369,1751705455083,-460.0,0.00019178,2]
[369702370,1751705455093,-346.27641154,0.00020273,2]
[369702371,1751705455102,-460.0,0.00020273,2]
[369702372,1751705455112,-460.0,0.00020273,2]
[369702373,1751705455121,-460.0,0.00020273,2]
[369702374,1751705455131,-63.42097534,0.00020273,2]
[369702375,1751705455153,-393.55482928,0.00020273,2]
[369702376,1751705459482,-1425.700614,0.00020273,2]
[369702377,1751705459495,-375.481998,0.00020273,2]
[369702378,1751705459619,-460.0,0.00019452,2]
[369702379,1751705459630,-227.63105915,0.00020273,2]
[369702380,1751705459648,-1657.09659948,0.00019178,2]
[369702381,1751705459663,-9434.35863073,0.00019178,2]
[369702382,1751705459675,-2432.69984497,0.00019178,2]
[369702385,1751705535360,162.166819,0.00013699,2]
[369702390,1751706035131,-359.44286445,0.00017349,2]
[369702391,1751706035152,-500.0,0.00017349,2]
[369702392,1751706035173,-500.0,0.00017349,2]
[369702393,1751706035195,-500.0,0.00017349,2]
[369702394,1751706035219,-500.0,0.00017349,2]
[369702395,1751706035241,-500.0,0.00017349,2]
[369702396,1751706035261,-500.0,0.00017349,2]
[369702397,1751706035282,-500.0,0.00017349,2]
[369702398,1751706035303,-489.55713555,0.00017349,2]
[369702400,1751706103493,-10.44286445,0.00017349,2]
[369702401,1751706103517,-199.0637786,0.00017766,2]
[369702402,1751706103540,-300.0,0.0001862,2]
[369702403,1751706103565,-16845.49335695,0.00018621,2]
[369702404,1751706162964,460.0,0.00027397,120]
[369702408,1751706561254,162.166819,0.00013699,2]
[369702448,1751706637983,-2358.0484765,0.00017881,2]
[369702449,1751706637993,-323.35404961,0.00018622,2]
[369702450,1751706638005,-177.95152348,0.00018622,2]
[369702451,1751706638015,-1234.3632383,0.00018773,2]
[369702452,1751706638025,-426.74606944,0.000188,2]
[369702453,1751706638035,-426.74606942,0.0001887,2]
[369702454,1751706638044,-50000.0,0.00018873,2]
[369702455,1751706638053,-500.0,0.00018873,2]
[369702456,1751706638063,-500.0,0.00018873,2]
[369702457,1751706638072,-500.0,0.00018873,2]
[369702458,1751706638081,-500.0,0.00018873,2]
[369702459,1751706638090,-500.0,0.00018873,2]
[369702460,1751706638100,-500.0,0.00018873,2]
[369702461,1751706638110,-500.0,0.00018873,2]
[369702462,1751706638119,-482.60125508,0.00018873,2]
[369702463,1751706638128,-500.0,0.00018873,2]
[369702464,1751706638138,-500.0,0.00018873,2]
[369702465,1751706638148,-500.0,0.00018873,2]
[369702466,1751706638157,-266.3531368,0.00018873,2]
[369702467,1751706638167,-500.0,0.00018873,2]
[369702468,1751706638176,-500.0,0.00018873,2]
[369702469,1751706638186,-500.0,0.00018873,2]
[369702470,1751706638195,-500.0,0.00018873,2]
[369702471,1751706638204,-154.61500719,0.00018875,2]
[369702472,1751706638214,-370000.0,0.00018876,2]
[369702473,1751706638223,-150.0,0.000189,2]
[369702474,1751706638232,-426.74606942,0.00018939,2]
[369702475,1751706638242,-151.0,0.00019,2]
[369702476,1751706638251,-151.0,0.00019,2]
[369702477,1751706638260,-426.74606942,0.00019009,2]
[369702478,1751706638270,-426.74606942,0.00019078,2]
[369702479,1751706638279,-151.0,0.000191,2]
[369702480,1751706638289,-3197.69133559,0.00019121,2]
[369702481,1751706638298,-500.0,0.00019121,2]
[369702482,1751706638308,-321.87137015,0.00019121,2]
[369702483,1751706638317,-500.0,0.00019121,2]
[369702484,1751706638326,-3197.69133559,0.00019121,2]
[369702485,1751706638336,-3197.69133559,0.00019121,2]
[369702486,1751706638345,-3197.69133559,0.00019121,2]
[369702487,1751706638354,-3197.69133559,0.00019121,2]
[369702488,1751706638363,-3197.69133559,0.00019121,2]
[369702489,1751706638372,-3197.69133559,0.00019121,2]
[369702490,1751706638381,-500.0,0.00019121,2]
[369702491,1751706638390,-3197.69133559,0.00019121,2]
[369702492,1751706638400,-535.15306332,0.00019121,2]
[369702493,1751706638409,-3197.69133559,0.00019121,2]
[369702494,1751706638419,-500.0,0.00019121,2]
[369702495,1751706638429,-3197.69133559,0.00019121,2]
[369702496,1751706638438,-3197.69133559,0.00019121,2]
[369702497,1751706638448,-500.0,0.00019121,2]
[369702498,1751706638457,-3197.69133559,0.00019121,2]
[369702499,1751706638467,-3197.69133559,0.00019121,2]
[369702500,1751706638475,-500.0,0.00019121,2]
[369702501,1751706638484,-3197.69133559,0.00019121,2]
[369702502,1751706638494,-3197.69133559,0.00019121,2]
[369702503,1751706638503,-3197.69133559,0.00019121,2]
[369702504,1751706638512,-3197.69133559,0.00019121,2]
[369702505,1751706638521,-3197.69133559,0.00019121,2]
[369702506,1751706638530,-3197.69133559,0.00019121,2]
[369702507,1751706638541,-3197.69133559,0.00019121,2]
[369702508,1751706638551,-3197.69133559,0.00019121,2]
[369702509,1751706638560,-3197.69133559,0.00019121,2]
[369702510,1751706638569,-56619.97177659,0.00019122,2]
[369702511,1751706638578,-151.0,0.00019166,2]
[369702512,1751706638588,-500.0,0.00019173,2]
[369702513,1751706638597,-500.0,0.00019173,2]
[369702514,1751706638606,-500.0,0.00019173,2]
[369702515,1751706638615,-500.0,0.00019173,2]
[369702516,1751706638625,-500.0,0.00019173,2]
[369702517,1751706638633,-501.93501773,0.00019173,2]
[369702518,1751706638643,-500.0,0.00019173,2]
[369702519,1751706638653,-500.0,0.00019173,2]
[369702520,1751706638662,-500.0,0.00019173,2]
[369702521,1751706638671,-198.71431131,0.00019173,2]
[369702522,1751706638681,-500.0,0.00019173,2]
[369702523,1751706638690,-500.0,0.00019173,2]
[369702524,1751706638699,-600.0,0.00019173,2]
[369702525,1751706638708,-501.43278798,0.00019173,2]
[369702526,1751706638718,-500.0,0.00019173,2]
[369702527,1751706638726,-500.0,0.00019173,2]
[369702528,1751706638736,-500.0,0.00019173,2]
[369702529,1751706638745,-500.0,0.00019173,2]
[369702530,1751706638754,-500.0,0.00019173,2]
[369702531,1751706638763,-500.0,0.00019173,2]
[369702532,1751706638772,-500.0,0.00019173,2]
[369702533,1751706638781,-500.0,0.00019173,2]
[369702534,1751706638791,-500.0,0.00019173,2]
[369702535,1751706638800,-500.0,0.00019173,2]
[369702536,1751706638809,-500.0,0.00019173,2]
[369702537,1751706638822,-500.0,0.00019173,2]
[369702538,1751706638831,-500.0,0.00019173,2]
[369702539,1751706638840,-502.41933287,0.00019173,2]
[369702540,1751706638850,-500.0,0.00019173,2]
[369702541,1751706638861,-500.0,0.00019173,2]
[369702542,1751706638870,-500.0,0.00019173,2]
[369702543,1751706638881,-500.0,0.00019173,2]
[369702544,1751706638892,-160.16868076,0.00019173,2]
[369702545,1751706638901,-500.0,0.00019173,2]
[369702546,1751706638910,-159.64315597,0.00019173,2]
[369702547,1751706638920,-460.0,0.00019178,2]
[369702548,1751706638929,-460.0,0.00019178,2]
[369702549,1751706638938,-460.0,0.00019178,2]
[369702550,1751706638947,-460.0,0.00019178,2]
[369702551,1751706638957,-460.0,0.00019178,2]
[369702552,1751706638966,-460.0,0.00019178,2]
[369702553,1751706638976,-460.0,0.00019178,2]
[369702554,1751706638985,-460.0,0.00019178,2]
[369702555,1751706638994,-460.0,0.00019178,2]
[369702556,1751706639004,-460.0,0.00019178,2]
[369702557,1751706639014,-461.05559581,0.00019178,2]
[369702558,1751706639023,-460.0,0.00019178,2]
[369702559,1751706639032,-460.0,0.00019178,2]
[369702560,1751706639041,-460.0,0.00019178,2]
[369702561,1751706639050,-460.0,0.00019178,2]
[369702562,1751706639060,-460.0,0.00019178,2]
[369702563,1751706639069,-460.0,0.00019178,2]
[369702564,1751706639079,-460.0,0.00019178,2]
[369702565,1751706639088,-520.3,0.00019178,2]
[369702566,1751706639098,-460.0,0.00019178,2]
[369702567,1751706639107,-460.0,0.00019178,2]
[369702568,1751706639116,-460.0,0.00019178,2]
[369702569,1751706639126,-465.60034687,0.00019178,2]
[369702570,1751706639135,-456.28514903,0.00019178,2]
[369702571,1751706639144,-460.0,0.00019178,2]
[369702572,1751706639153,-460.0,0.00019178,2]
[369702573,1751706639163,-460.0,0.00019178,2]
[369702574,1751706639174,-460.0,0.00019178,2]
[369702575,1751706639186,-460.0,0.00019178,2]
[369702576,1751706639196,-460.0,0.00019178,2]
[369702577,1751706639206,-460.0,0.00019178,2]
[369702578,1751706639215,-460.0,0.00019178,2]
[369702579,1751706639225,-460.0,0.00019178,2]
[369702580,1751706639235,-460.0,0.00019178,2]
[369702581,1751706639244,-460.0,0.00019178,2]
[369702582,1751706639253,-460.0,0.00019178,2]
[369702583,1751706639263,-460.0,0.00019178,2]
[369702584,1751706639272,-460.0,0.00019178,2]
[369702585,1751706639281,-460.0,0.00019178,2]
[369702586,1751706639290,-460.0,0.00019178,2]
[369702587,1751706639299,-460.0,0.00019178,2]
[369702588,1751706639308,-460.0,0.00019178,2]
[369702589,1751706639317,-460.0,0.00019178,2]
[369702590,1751706639326,-460.0,0.00019178,2]
[369702591,1751706639335,-460.0,0.00019178,2]
[369702592,1751706639344,-460.0,0.00019178,2]
[369702593,1751706639353,-460.0,0.00019178,2]
[369702594,1751706639362,-460.0,0.00019178,2]
[369702595,1751706639371,-460.0,0.00019178,2]
[369702596,1751706639381,-460.0,0.00019178,2]
[369702597,1751706639390,-460.0,0.00019178,2]
[369702598,1751706639399,-460.0,0.00019178,2]
[369702599,1751706639409,-460.0,0.00019178,2]
[369702600,1751706639418,-460.0,0.00019178,2]
[369702601,1751706639427,-460.0,0.00019178,2]
[369702602,1751706639436,-460.0,0.00019178,2]
[369702603,1751706639446,-460.0,0.00019178,2]
[369702604,1751706639455,-460.0,0.00019178,2]
[369702605,1751706639465,-152.70932095,0.00019178,2]
[369702606,1751706639474,-460.0,0.00019178,2]
[369702607,1751706639483,-384.58486075,0.00019178,2]
[369702609,1751706639493,-461.11172727,0.00019178,2]
[369702610,1751706639502,-460.0,0.00019178,2]
[369702611,1751706639511,-460.0,0.00019178,2]
[369702612,1751706639521,-460.0,0.00019178,2]
[369702613,1751706639530,-460.0,0.00019178,2]
[369702614,1751706639539,-460.0,0.00019178,2]
[369702615,1751706639549,-460.94705447,0.00019178,2]
[369702617,1751706639558,-460.0,0.00019178,2]
[369702619,1751706639567,-460.0,0.00019178,2]
[369702621,1751706639577,-460.66645899,0.00019178,2]
[369702623,1751706639585,-460.0,0.00019178,2]
[369702624,1751706639595,-460.0,0.00019178,2]
[369702626,1751706639604,-500.0,0.00019178,2]
[369702627,1751706639613,-500.0,0.00019178,2]
[369702628,1751706639622,-300.0,0.00019178,2]
[369702629,1751706639632,-500.0,0.00019178,2]
[369702630,1751706639641,-500.0,0.00019178,2]
[369702631,1751706639651,-500.0,0.00019178,2]
[369702632,1751706639660,-527.48523049,0.00019178,2]
[369702633,1751706639670,-460.0,0.00019178,2]
[369702634,1751706639679,-460.0,0.00019178,2]
[369702635,1751706639689,-460.0,0.00019178,2]
[369702636,1751706639698,-460.0,0.00019178,2]
[369702637,1751706639708,-460.0,0.00019178,2]
[369702638,1751706639718,-460.18224811,0.00019178,2]
[369702639,1751706639727,-460.0,0.00019178,2]
[369702640,1751706639736,-505.80013556,0.00019178,2]
[369702641,1751706639746,-460.0,0.00019178,2]
[369702642,1751706639755,-460.0,0.00019178,2]
[369702643,1751706639764,-460.0,0.00019178,2]
[369702644,1751706639774,-460.0,0.00019178,2]
[369702645,1751706639783,-460.0,0.00019178,2]
[369702646,1751706639792,-460.0,0.00019178,2]
[369702647,1751706639801,-343.80210891,0.00019178,2]
[369702648,1751706639810,-460.0,0.00019178,2]
[369702650,1751706639819,-460.0,0.00019178,2]
[369702652,1751706639829,-460.0,0.00019178,2]
[369702654,1751706639841,-316.54947232,0.00019178,2]
[369702656,1751706639851,-460.0,0.00019178,2]
[369702657,1751706639860,-460.0,0.00019178,2]
[369702659,1751706639870,-460.0,0.00019178,2]
[369702661,1751706639879,-500.0,0.00019178,2]
[369702663,1751706639888,-460.0,0.00019178,2]
[369702664,1751706639897,-460.0,0.00019178,2]
[369702665,1751706639907,-460.0,0.00019178,2]
[369702666,1751706639917,-460.0,0.00019178,2]
[369702667,1751706639927,-460.0,0.00019178,2]
[369702668,1751706639936,-460.0,0.00019178,2]
[369702669,1751706639945,-460.0,0.00019178,2]
[369702670,1751706639955,-500.0,0.00019178,2]
[369702671,1751706639964,-460.0,0.00019178,2]
[369702672,1751706639973,-460.0,0.00019178,2]
[369702673,1751706639983,-460.0,0.00019178,2]
[369702674,1751706639993,-460.0,0.00019178,2]
[369702675,1751706640005,-371.50799435,0.00019178,2]
[369702676,1751706640015,-460.0,0.00019178,2]
[369702677,1751706640025,-460.0,0.00019178,2]
[369702678,1751706640035,-460.0,0.00019178,2]
[369702679,1751706640044,-460.0,0.00019178,2]
[369702680,1751706640054,-460.0,0.00019178,2]
[369702681,1751706640064,-460.0,0.00019178,2]
[369702682,1751706640073,-460.0,0.00019178,2]
[369702683,1751706640083,-460.0,0.00019178,2]
[369702684,1751706640092,-460.0,0.00019178,2]
[369702685,1751706640101,-460.0,0.00019178,2]
[369702686,1751706640110,-460.0,0.00019178,2]
[369702687,1751706640119,-460.0,0.00019178,2]
[369702688,1751706640128,-235.51543838,0.00019178,2]
[369702689,1751706640138,-460.0,0.00019178,2]
[369702690,1751706640147,-562.18,0.00019178,2]
[369702691,1751706640156,-460.0,0.00019178,2]
[369702693,1751706640166,-460.0,0.00019178,2]
[369702695,1751706640176,-460.0,0.00019178,2]
[369702697,1751706640186,-460.0,0.00019178,2]
[369702699,1751706640196,-519.81581961,0.00019178,2]
[369702701,1751706640205,-460.0,0.00019178,2]
[369702703,1751706640215,-460.0,0.00019178,2]
[369702705,1751706640225,-460.0,0.00019178,2]
[369702707,1751706640234,-466.97063672,0.00019178,2]
[369702709,1751706640243,-460.0,0.00019178,2]
[369702711,1751706640252,-671.96,0.00019178,2]
[369702713,1751706640262,-460.0,0.00019178,2]
[369702715,1751706640271,-460.0,0.00019178,2]
[369702734,1751706640441,-460.0,0.00019178,2]
[369702736,1751706640451,-460.0,0.00019178,2]
[369702738,1751706640462,-460.0,0.00019178,2]
[369702740,1751706640471,-460.0,0.00019178,2]
[369702742,1751706640480,-460.0,0.00019178,2]
[369702744,1751706640490,-460.0,0.00019178,2]
[369702746,1751706640499,-460.0,0.00019178,2]
[369702748,1751706640509,-460.0,0.00019178,2]
[369702750,1751706640519,-460.0,0.00019178,2]
[369702752,1751706640528,-460.0,0.00019178,2]
[369702755,1751706640538,-460.0,0.00019178,2]
[369702756,1751706640547,-500.0,0.00019178,2]
[369702758,1751706640556,-460.0,0.00019178,2]
[369702760,1751706640565,-460.0,0.00019178,2]
[369702762,1751706640574,-460.0,0.00019178,2]
[369702764,1751706640584,-460.0,0.00019178,2]
[369702766,1751706640593,-460.0,0.00019178,2]
[369702768,1751706640602,-460.0,0.00019178,2]
[369702770,1751706640611,-460.0,0.00019178,2]
[369702772,1751706640621,-460.0,0.00019178,2]
[369702774,1751706640630,-460.0,0.00019178,2]
[369702776,1751706640639,-460.0,0.00019178,2]
[369702778,1751706640648,-460.0,0.00019178,2]
[369702780,1751706640657,-460.0,0.00019178,2]
[369702782,1751706640667,-460.0,0.00019178,2]
[369702784,1751706640677,-460.0,0.00019178,2]
[369702786,1751706640685,-151.0,0.00019178,2]
[369702788,1751706640695,-151.0,0.00019178,2]
[369702790,1751706640705,-583.05,0.00019178,2]
[369702792,1751706640714,-460.0,0.00019178,2]
[369702794,1751706640723,-151.0,0.00019178,2]
[369702796,1751706640733,-460.0,0.00019178,2]
[369702799,1751706640743,-460.0,0.00019178,2]
[369702800,1751706640752,-460.0,0.00019178,2]
[369702802,1751706640761,-460.0,0.00019178,2]
[369702805,1751706640771,-460.0,0.00019178,2]
[369702807,1751706640780,-460.0,0.00019178,2]
[369702808,1751706640790,-460.0,0.00019178,2]
[369702810,1751706640799,-460.0,0.00019178,2]
[369702812,1751706640808,-460.0,0.00019178,2]
[369702815,1751706640818,-460.0,0.00019178,2]
[369702816,1751706640828,-460.0,0.00019178,2]
[369702819,1751706640842,-460.0,0.00019178,2]
[369702821,1751706640851,-460.0,0.00019178,2]
[369702823,1751706640860,-460.0,0.00019178,2]
[369702825,1751706640870,-460.0,0.00019178,2]
[369702826,1751706640879,-460.0,0.00019178,2]
[369702828,1751706640888,-460.0,0.00019178,2]
[369702830,1751706640898,-460.0,0.00019178,2]
[369702832,1751706640907,-584.65,0.00019178,2]
[369702834,1751706640918,-460.57565078,0.00019178,2]
[369702836,1751706640927,-460.0,0.00019178,2]
[369702838,1751706640936,-460.0,0.00019178,2]
[369702840,1751706640946,-460.0,0.00019178,2]
[369702842,1751706640956,-460.0,0.00019178,2]
[369702844,1751706640965,-460.0,0.00019178,2]
[369702846,1751706640974,-460.0,0.00019178,2]
[369702848,1751706640984,-460.0,0.00019178,2]
[369702850,1751706640994,-460.0,0.00019178,2]
[369702852,1751706641005,-460.0,0.00019178,2]
[369702854,1751706641015,-458.12460351,0.00019178,2]
[369702857,1751706641025,-460.0,0.00019178,2]
[369702859,1751706641035,-460.0,0.00019178,2]
[369702861,1751706641044,-460.0,0.00019178,2]
[369702863,1751706641054,-460.0,0.00019178,2]
[369702865,1751706641063,-460.0,0.00019178,2]
[369702867,1751706641072,-460.0,0.00019178,2]
[369702869,1751706641083,-460.0,0.00019178,2]
[369702871,1751706641092,-460.0,0.00019178,2]
[369702873,1751706641101,-460.0,0.00019178,2]
[369702875,1751706641110,-460.0,0.00019178,2]
[369702877,1751706641119,-460.0,0.00019178,2]
[369702879,1751706641128,-460.0,0.00019178,2]
[369702881,1751706641137,-460.0,0.00019178,2]
[369702883,1751706641146,-460.0,0.00019178,2]
[369702885,1751706641155,-460.0,0.00019178,2]
[369702887,1751706641163,-460.0,0.00019178,2]
[369702889,1751706641172,-460.0,0.00019178,2]
[369702891,1751706641181,-460.0,0.00019178,2]
[369702893,1751706641190,-460.0,0.00019178,2]
[369702894,1751706641199,-460.0,0.00019178,2]
[369702896,1751706641208,-460.0,0.00019178,2]
[369702898,1751706641217,-460.0,0.00019178,2]
[369702900,1751706641226,-460.0,0.00019178,2]
[369702903,1751706641236,-460.0,0.00019178,2]
[369702905,1751706641246,-460.0,0.00019178,2]
[369702907,1751706641255,-460.0,0.00019178,2]
[369702909,1751706641264,-460.0,0.00019178,2]